[Event "Live Chess"]
[Site "Chess.com"]
[Date "2023.05.20"]
[Round "-"]
[White "GMHarry-youtube"]
[Black "gmnorfolk"]
[Result "0-1"]
[WhiteElo "2173"]
[BlackElo "2167"]
[TimeControl "300"]
[EndTime "9:35:13 PDT"]
[Termination "gmnorfolk won by checkmate"]

1. e4 {[%clk 0:04:59.2]} 1... e5 {[%clk 0:04:58.6]} 2. Nf3 {[%clk 0:04:58.2]}
2... Nc6 {[%clk 0:04:56.2]} 3. Bc4 {[%clk 0:04:57.8]} 3... Nf6 {[%clk 0:04:54]}
4. d3 {[%clk 0:04:55]} 4... Bc5 {[%clk 0:04:49.9]} 5. c3 {[%clk 0:04:51.6]} 5...
O-O {[%clk 0:04:44.3]} 6. O-O {[%clk 0:04:49.3]} 6... d5 {[%clk 0:04:43.3]} 7.
exd5 {[%clk 0:04:47.6]} 7... Nxd5 {[%clk 0:04:43.2]} 8. Qb3 {[%clk 0:04:46.8]}
8... Nb6 {[%clk 0:04:32.3]} 9. Bb5 {[%clk 0:04:36.6]} 9... Be6 {[%clk
0:04:23.9]} 10. c4 {[%clk 0:04:32.3]} 10... Nd4 {[%clk 0:04:05.6]} 11. Nxd4
{[%clk 0:04:27.3]} 11... Bxd4 {[%clk 0:03:59.3]} 12. Be3 {[%clk 0:04:20.9]}
12... a6 {[%clk 0:03:54]} 13. Ba4 {[%clk 0:04:18.9]} 13... Nxa4 {[%clk
0:03:52.3]} 14. Qxa4 {[%clk 0:04:17.9]} 14... Bxb2 {[%clk 0:03:51.3]} 15. Nd2
{[%clk 0:04:15.5]} 15... Bxa1 {[%clk 0:03:50.4]} 16. Rxa1 {[%clk 0:04:15.4]}
16... Qxd3 {[%clk 0:03:48.9]} 17. Nf3 {[%clk 0:04:14.6]} 17... Qxc4 {[%clk
0:03:44.8]} 18. Qxc4 {[%clk 0:04:04.9]} 18... Bxc4 {[%clk 0:03:43.6]} 19. Nxe5
{[%clk 0:04:04.8]} 19... Be6 {[%clk 0:03:41.4]} 20. Rc1 {[%clk 0:04:03]} 20...
c6 {[%clk 0:03:39]} 21. Bb6 {[%clk 0:04:01.7]} 21... Bxa2 {[%clk 0:03:33.7]} 22.
Rd1 {[%clk 0:04:00.3]} 22... Bd5 {[%clk 0:03:31.3]} 23. f4 {[%clk 0:03:54]}
23... Rfe8 {[%clk 0:03:29.7]} 24. Kf2 {[%clk 0:03:51.8]} 24... a5 {[%clk
0:03:25.6]} 25. Ra1 {[%clk 0:03:46.6]} 25... a4 {[%clk 0:03:23.6]} 26. Ra3
{[%clk 0:03:44.3]} 26... Ra6 {[%clk 0:03:19.7]} 27. Nd7 {[%clk 0:03:41.3]} 27...
Re7 {[%clk 0:03:11.7]} 28. Nb8 {[%clk 0:03:23]} 28... Rxb6 {[%clk 0:03:07.3]}
29. Rxa4 {[%clk 0:03:21.7]} 29... Rb2+ {[%clk 0:02:59.8]} 30. Kg3 {[%clk
0:03:19.7]} 30... Rxg2+ {[%clk 0:02:55.6]} 31. Kh3 {[%clk 0:03:17.1]} 31... Re6
{[%clk 0:02:53.5]} 32. f5 {[%clk 0:03:12.2]} 32... Rh6+ {[%clk 0:02:52.2]} 33.
Rh4 {[%clk 0:03:12.1]} 33... Rxh4+ {[%clk 0:02:49.6]} 34. Kxh4 {[%clk 0:03:12]}
34... Rxh2+ {[%clk 0:02:48.7]} 35. Kg5 {[%clk 0:03:11.7]} 35... f6+ {[%clk
0:02:45.9]} 36. Kf4 {[%clk 0:03:11.6]} 36... Rh4+ {[%clk 0:02:41.7]} 37. Ke3
{[%clk 0:03:10]} 37... Re4+ {[%clk 0:02:39.5]} 38. Kd3 {[%clk 0:03:08.6]} 38...
Re7 {[%clk 0:02:33.1]} 39. Kc3 {[%clk 0:03:08.5]} 39... b6 {[%clk 0:02:30.5]}
40. Na6 {[%clk 0:03:06.4]} 40... Re5 {[%clk 0:02:24.8]} 41. Nb8 {[%clk
0:03:03.5]} 41... Rxf5 {[%clk 0:02:23.4]} 42. Nd7 {[%clk 0:03:02.5]} 42... h5
{[%clk 0:02:20.3]} 43. Nxb6 {[%clk 0:03:01.1]} 43... h4 {[%clk 0:02:19.4]} 44.
Na4 {[%clk 0:03:00.8]} 44... h3 {[%clk 0:02:18.2]} 45. Nc5 {[%clk 0:03:00.7]}
45... h2 {[%clk 0:02:16.4]} 46. Nd3 {[%clk 0:02:59.9]} 46... Rf3 {[%clk
0:02:14.2]} 47. Kc2 {[%clk 0:02:51.7]} 47... Rxd3 {[%clk 0:02:13.1]} 48. Kb2
{[%clk 0:02:47.6]} 48... Rg3 {[%clk 0:02:09.1]} 49. Kc2 {[%clk 0:02:47.5]} 49...
h1=Q {[%clk 0:02:05.8]} 50. Kd2 {[%clk 0:02:47.4]} 50... Qh2+ {[%clk 0:02:04.7]}
51. Ke1 {[%clk 0:02:46.2]} 51... Rg1# {[%clk 0:02:04.6]} 0-1

[Event "Live Chess"]
[Site "Chess.com"]
[Date "2023.05.20"]
[Round "-"]
[White "CheckThis4"]
[Black "Duke_of_Bebington"]
[Result "1-0"]
[WhiteElo "2535"]
[BlackElo "1551"]
[TimeControl "300"]
[EndTime "9:35:14 PDT"]
[Termination "CheckThis4 won by resignation"]

1. Nf3 {[%clk 0:04:57.7]} 1... d5 {[%clk 0:04:57.6]} 2. c4 {[%clk 0:04:55.9]}
2... c6 {[%clk 0:04:56.3]} 3. d4 {[%clk 0:04:51.9]} 3... Nf6 {[%clk 0:04:53.4]}
4. Nc3 {[%clk 0:04:50.5]} 4... dxc4 {[%clk 0:04:49.8]} 5. a4 {[%clk 0:04:49]}
5... Bf5 {[%clk 0:04:38.3]} 6. e3 {[%clk 0:04:47.4]} 6... e6 {[%clk 0:04:35.9]}
7. Bxc4 {[%clk 0:04:46.1]} 7... Nbd7 {[%clk 0:04:21.4]} 8. O-O {[%clk 0:04:44]}
8... Bd6 {[%clk 0:04:15.3]} 9. Qe2 {[%clk 0:04:37.5]} 9... Ne4 {[%clk
0:04:03.9]} 10. Bd3 {[%clk 0:04:28.1]} 10... Ndf6 {[%clk 0:04:01.1]} 11. h3
{[%clk 0:04:08.7]} 11... O-O {[%clk 0:03:55.3]} 12. Nd2 {[%clk 0:04:02.8]} 12...
Nxd2 {[%clk 0:03:24.2]} 13. Bxd2 {[%clk 0:03:58.8]} 13... Bxd3 {[%clk
0:03:22.4]} 14. Qxd3 {[%clk 0:03:58.7]} 14... Nd5 {[%clk 0:02:51.2]} 15. Ne4
{[%clk 0:03:51]} 15... Be7 {[%clk 0:02:45.5]} 16. a5 {[%clk 0:03:45.8]} 16...
Qc7 {[%clk 0:02:27.8]} 17. Rfc1 {[%clk 0:03:41.4]} 17... Rfd8 {[%clk 0:02:18]}
18. a6 {[%clk 0:03:40]} 18... Rac8 {[%clk 0:01:51.7]} 19. axb7 {[%clk
0:03:34.5]} 19... Qxb7 {[%clk 0:01:50.6]} 20. Qc2 {[%clk 0:03:24.8]} 20... Rc7
{[%clk 0:01:24.5]} 21. Ba5 {[%clk 0:03:21]} 21... Nb6 {[%clk 0:01:21.9]} 22. Nc5
{[%clk 0:03:17.9]} 22... Bxc5 {[%clk 0:01:06.2]} 23. dxc5 {[%clk 0:03:16.2]}
23... Nd5 {[%clk 0:01:02.2]} 24. Bxc7 {[%clk 0:03:12.9]} 24... Qxc7 {[%clk
0:01:02.1]} 25. Rd1 {[%clk 0:03:05.8]} 25... h6 {[%clk 0:00:56]} 26. e4 {[%clk
0:03:02.6]} 26... Nf6 {[%clk 0:00:52.5]} 27. Rxd8+ {[%clk 0:02:59.5]} 27... Qxd8
{[%clk 0:00:52.4]} 28. Rxa7 {[%clk 0:02:51.7]} 28... Qd4 {[%clk 0:00:45.3]} 29.
Ra8+ {[%clk 0:02:50.1]} 29... Kh7 {[%clk 0:00:44.1]} 30. e5+ {[%clk 0:02:41.2]}
30... Qe4 {[%clk 0:00:38.4]} 31. Qxe4+ {[%clk 0:02:36]} 31... Nxe4 {[%clk
0:00:38.3]} 32. b4 {[%clk 0:02:32.6]} 32... Nd2 {[%clk 0:00:28.9]} 33. Rc8
{[%clk 0:02:30.4]} 33... Nc4 {[%clk 0:00:27.9]} 34. f4 {[%clk 0:02:27.3]} 1-0

[Event "Live Chess"]
[Site "Chess.com"]
[Date "2023.05.20"]
[Round "-"]
[White "LodeshChess"]
[Black "toog"]
[Result "0-1"]
[WhiteElo "874"]
[BlackElo "2635"]
[TimeControl "300"]
[EndTime "9:35:19 PDT"]
[Termination "toog won by resignation"]

1. e4 {[%clk 0:04:58.6]} 1... c6 {[%clk 0:04:56.2]} 2. Nf3 {[%clk 0:04:57]} 2...
d5 {[%clk 0:04:56.1]} 3. d3 {[%clk 0:04:56.6]} 3... Bg4 {[%clk 0:04:52.6]} 4.
Nbd2 {[%clk 0:04:51.3]} 4... Nf6 {[%clk 0:04:49.3]} 5. Be2 {[%clk 0:04:49]} 5...
Nbd7 {[%clk 0:04:47.2]} 6. h3 {[%clk 0:04:47.5]} 6... Bxf3 {[%clk 0:04:46.1]} 7.
Bxf3 {[%clk 0:04:46.5]} 7... e6 {[%clk 0:04:45]} 8. O-O {[%clk 0:04:45.2]} 8...
Bd6 {[%clk 0:04:44]} 9. Re1 {[%clk 0:04:41.3]} 9... Qc7 {[%clk 0:04:40.9]} 10.
b3 {[%clk 0:04:25.6]} 10... O-O-O {[%clk 0:04:39.1]} 11. exd5 {[%clk 0:04:17.5]}
11... exd5 {[%clk 0:04:37.6]} 12. c4 {[%clk 0:04:16.2]} 12... Ne5 {[%clk
0:04:34.9]} 13. Bb2 {[%clk 0:04:06.1]} 13... Nxd3 {[%clk 0:04:31.6]} 14. Bxf6
{[%clk 0:04:00.3]} 14... gxf6 {[%clk 0:04:31.5]} 15. Re3 {[%clk 0:03:47.7]}
15... Nxf2 {[%clk 0:04:28.1]} 16. Kxf2 {[%clk 0:03:31.9]} 16... Bc5 {[%clk
0:04:26.6]} 17. cxd5 {[%clk 0:03:11.6]} 17... Rhe8 {[%clk 0:04:22.6]} 18. Nc4
{[%clk 0:03:04.9]} 18... cxd5 {[%clk 0:04:21]} 19. Bxd5 {[%clk 0:02:50.8]} 19...
Qf4+ {[%clk 0:04:19]} 20. Ke2 {[%clk 0:02:42.2]} 20... Rxe3+ {[%clk 0:04:14.3]}
21. Nxe3 {[%clk 0:02:37.2]} 21... Qxe3+ {[%clk 0:04:14.2]} 0-1

[Event "Live Chess"]
[Site "Chess.com"]
[Date "2023.05.20"]
[Round "-"]
[White "IanCalvert2"]
[Black "FlyingChessKestrel13"]
[Result "1/2-1/2"]
[WhiteElo "1612"]
[BlackElo "2141"]
[TimeControl "300"]
[EndTime "9:35:25 PDT"]
[Termination "Game drawn by repetition"]

1. b3 {[%clk 0:04:58.1]} 1... Nf6 {[%clk 0:04:56.1]} 2. Bb2 {[%clk 0:04:56.7]}
2... e6 {[%clk 0:04:55.7]} 3. Nf3 {[%clk 0:04:55.5]} 3... Be7 {[%clk 0:04:55]}
4. g3 {[%clk 0:04:53.7]} 4... O-O {[%clk 0:04:54.3]} 5. Bg2 {[%clk 0:04:52.7]}
5... d5 {[%clk 0:04:54]} 6. c4 {[%clk 0:04:45.4]} 6... c6 {[%clk 0:04:52.7]} 7.
O-O {[%clk 0:04:41.5]} 7... Nbd7 {[%clk 0:04:50.9]} 8. d4 {[%clk 0:04:38]} 8...
b6 {[%clk 0:04:47.5]} 9. Nbd2 {[%clk 0:04:34.7]} 9... Bb7 {[%clk 0:04:46.7]} 10.
e3 {[%clk 0:04:27.1]} 10... c5 {[%clk 0:04:44]} 11. Qe2 {[%clk 0:04:21.4]} 11...
Ne4 {[%clk 0:04:41.5]} 12. cxd5 {[%clk 0:03:57.3]} 12... exd5 {[%clk 0:04:39.9]}
13. Nxe4 {[%clk 0:03:54.2]} 13... dxe4 {[%clk 0:04:38.8]} 14. Nd2 {[%clk
0:03:49.3]} 14... f5 {[%clk 0:04:37.2]} 15. Rfd1 {[%clk 0:03:42.4]} 15... Qe8
{[%clk 0:04:27.9]} 16. dxc5 {[%clk 0:03:36.2]} 16... Nxc5 {[%clk 0:04:25.7]} 17.
Nc4 {[%clk 0:03:33.4]} 17... Nd3 {[%clk 0:04:23.7]} 18. Rxd3 {[%clk 0:03:18.9]}
18... exd3 {[%clk 0:04:22]} 19. Qxd3 {[%clk 0:03:17.7]} 19... Bxg2 {[%clk
0:04:20.8]} 20. Kxg2 {[%clk 0:03:16.6]} 20... Bf6 {[%clk 0:04:17.7]} 21. Bxf6
{[%clk 0:02:58]} 21... Rxf6 {[%clk 0:04:14.2]} 22. Qd5+ {[%clk 0:02:55.5]} 22...
Kh8 {[%clk 0:04:11.5]} 23. Rd1 {[%clk 0:02:53.2]} 23... Qc6 {[%clk 0:04:03.4]}
24. Ne5 {[%clk 0:02:34.9]} 24... Qxd5+ {[%clk 0:04:01.3]} 25. Rxd5 {[%clk
0:02:32.1]} 25... h6 {[%clk 0:03:54.9]} 26. Nf3 {[%clk 0:02:27.5]} 26... a5
{[%clk 0:03:51.9]} 27. Nd4 {[%clk 0:02:25.1]} 27... a4 {[%clk 0:03:51]} 28. Rxf5
{[%clk 0:02:08.7]} 28... Rxf5 {[%clk 0:03:49.1]} 29. Nxf5 {[%clk 0:02:07.4]}
29... axb3 {[%clk 0:03:48.8]} 30. axb3 {[%clk 0:02:05.4]} 30... Ra3 {[%clk
0:03:47.9]} 31. Nd4 {[%clk 0:02:03.8]} 31... Kg8 {[%clk 0:03:46.2]} 32. h4
{[%clk 0:01:57.5]} 32... Kf7 {[%clk 0:03:44.9]} 33. f4 {[%clk 0:01:56.4]} 33...
Kf6 {[%clk 0:03:37.3]} 34. Kf3 {[%clk 0:01:53]} 34... Ra1 {[%clk 0:03:35.4]} 35.
g4 {[%clk 0:01:48.3]} 35... Rh1 {[%clk 0:03:28.5]} 36. g5+ {[%clk 0:01:42.7]}
36... Kf7 {[%clk 0:03:26.4]} 37. Kg4 {[%clk 0:01:39.7]} 37... hxg5 {[%clk
0:03:17]} 38. hxg5 {[%clk 0:01:36.8]} 38... Re1 {[%clk 0:03:13.3]} 39. Kf3
{[%clk 0:01:35.2]} 39... Rd1 {[%clk 0:03:10.4]} 40. Ke4 {[%clk 0:01:33.2]} 40...
Rd2 {[%clk 0:03:05.6]} 41. f5 {[%clk 0:01:30.7]} 41... Rg2 {[%clk 0:03:02.3]}
42. Kf4 {[%clk 0:01:28.5]} 42... Rf2+ {[%clk 0:03:00.8]} 43. Ke5 {[%clk
0:01:26.6]} 43... Rd2 {[%clk 0:02:52.3]} 44. e4 {[%clk 0:01:23]} 44... Rd3
{[%clk 0:02:50.2]} 45. f6 {[%clk 0:01:10.8]} 45... gxf6+ {[%clk 0:02:42.6]} 46.
gxf6 {[%clk 0:01:08.8]} 46... Rd1 {[%clk 0:02:41.1]} 47. Nf5 {[%clk 0:00:53.2]}
47... Rd3 {[%clk 0:02:34.7]} 48. Nd4 {[%clk 0:00:50.4]} 48... Rd1 {[%clk
0:02:31.4]} 49. Nf5 {[%clk 0:00:47.5]} 49... Rd3 {[%clk 0:02:29.7]} 50. Nd4
{[%clk 0:00:46.2]} 1/2-1/2

[Event "Live Chess"]
[Site "Chess.com"]
[Date "2023.05.20"]
[Round "-"]
[White "defenderalist"]
[Black "LL220284LL"]
[Result "0-1"]
[WhiteElo "1592"]
[BlackElo "2407"]
[TimeControl "300"]
[EndTime "9:35:25 PDT"]
[Termination "LL220284LL won by resignation"]

1. e4 {[%clk 0:04:49.1]} 1... c6 {[%clk 0:04:57.1]} 2. Nf3 {[%clk 0:04:48.4]}
2... d5 {[%clk 0:04:55.8]} 3. exd5 {[%clk 0:04:47.9]} 3... cxd5 {[%clk
0:04:55.1]} 4. d4 {[%clk 0:04:47.4]} 4... Nf6 {[%clk 0:04:54]} 5. Nc3 {[%clk
0:04:45.7]} 5... e6 {[%clk 0:04:52.5]} 6. Bb5+ {[%clk 0:04:43]} 6... Bd7 {[%clk
0:04:50.9]} 7. Bxd7+ {[%clk 0:04:41.8]} 7... Nbxd7 {[%clk 0:04:50.8]} 8. O-O
{[%clk 0:04:41.2]} 8... Bd6 {[%clk 0:04:50.3]} 9. Bg5 {[%clk 0:04:39.3]} 9... h6
{[%clk 0:04:49.3]} 10. Bh4 {[%clk 0:04:38]} 10... O-O {[%clk 0:04:48.9]} 11. Ne2
{[%clk 0:04:31.5]} 11... Rc8 {[%clk 0:04:47.6]} 12. c3 {[%clk 0:04:30.2]} 12...
Qb6 {[%clk 0:04:45.3]} 13. Qd2 {[%clk 0:04:22.7]} 13... Ne4 {[%clk 0:04:43.7]}
14. Qc2 {[%clk 0:04:18.9]} 14... f5 {[%clk 0:04:41.4]} 15. Nd2 {[%clk
0:04:10.6]} 15... g5 {[%clk 0:04:38.5]} 16. Bg3 {[%clk 0:04:08.6]} 16... f4
{[%clk 0:04:26.6]} 17. Nxe4 {[%clk 0:04:04.9]} 17... dxe4 {[%clk 0:04:26.5]} 18.
Qxe4 {[%clk 0:03:59.7]} 18... Rf6 {[%clk 0:04:24.8]} 19. Bh4 {[%clk 0:03:49.9]}
19... Qc6 {[%clk 0:04:16.8]} 20. Qd3 {[%clk 0:03:35.8]} 20... Nf8 {[%clk
0:04:08.3]} 21. f3 {[%clk 0:03:33.9]} 21... gxh4 {[%clk 0:04:06.8]} 22. Rae1
{[%clk 0:03:28.6]} 22... Qc4 {[%clk 0:04:04.9]} 23. Qe4 {[%clk 0:03:23.4]} 23...
Qd5 {[%clk 0:04:02.1]} 24. Qd3 {[%clk 0:03:20.6]} 24... h3 {[%clk 0:04:00]} 25.
g4 {[%clk 0:03:15]} 25... fxg3 {[%clk 0:03:58.2]} 26. Nxg3 {[%clk 0:03:12.9]}
26... Bxg3 {[%clk 0:03:53.8]} 27. hxg3 {[%clk 0:03:10.8]} 27... Nh7 {[%clk
0:03:49.7]} 28. Kh2 {[%clk 0:03:09.2]} 28... Rcf8 {[%clk 0:03:48.2]} 29. Re5
{[%clk 0:02:58.1]} 29... Rxf3 {[%clk 0:03:38.2]} 30. Qg6+ {[%clk 0:02:56.8]}
30... Kh8 {[%clk 0:03:34.7]} 31. Rxd5 {[%clk 0:02:46.4]} 31... Rxf1 {[%clk
0:03:32.6]} 32. Rd7 {[%clk 0:02:37.7]} 32... R8f2+ {[%clk 0:03:25.4]} 33. Kxh3
{[%clk 0:02:36.9]} 33... Rh1+ {[%clk 0:03:24.6]} 34. Kg4 {[%clk 0:02:36.1]}
34... h5+ {[%clk 0:03:23.8]} 35. Qxh5 {[%clk 0:02:25.8]} 35... Rxh5 {[%clk
0:03:21.5]} 36. Kxh5 {[%clk 0:02:25.2]} 36... Nf6+ {[%clk 0:03:20.2]} 0-1

[Event "Live Chess"]
[Site "Chess.com"]
[Date "2023.05.20"]
[Round "-"]
[White "Singapourfeuj"]
[Black "Balu13"]
[Result "1-0"]
[WhiteElo "2290"]
[BlackElo "835"]
[TimeControl "300"]
[EndTime "9:35:30 PDT"]
[Termination "Singapourfeuj won by resignation"]

1. d4 {[%clk 0:04:58.1]} 1... d5 {[%clk 0:04:59.2]} 2. e4 {[%clk 0:04:57.1]}
2... c6 {[%clk 0:04:54.5]} 3. Nc3 {[%clk 0:04:56.2]} 3... dxe4 {[%clk
0:04:40.3]} 4. f3 {[%clk 0:04:55.3]} 4... Nf6 {[%clk 0:04:31.1]} 5. Bc4 {[%clk
0:04:48]} 5... e6 {[%clk 0:04:10.2]} 6. Bg5 {[%clk 0:04:46.1]} 6... Bb4 {[%clk
0:04:05.8]} 7. fxe4 {[%clk 0:04:43.9]} 7... Bxc3+ {[%clk 0:04:02.5]} 8. bxc3
{[%clk 0:04:42.8]} 8... Nbd7 {[%clk 0:04:00.1]} 9. Nf3 {[%clk 0:04:41.4]} 9...
b5 {[%clk 0:03:56.6]} 10. Bd3 {[%clk 0:04:40.1]} 10... h6 {[%clk 0:03:45.1]} 11.
Bh4 {[%clk 0:04:37.3]} 11... Qa5 {[%clk 0:03:41.6]} 12. Qd2 {[%clk 0:04:35.9]}
12... Ba6 {[%clk 0:03:33.2]} 13. O-O {[%clk 0:04:34.3]} 13... Ng4 {[%clk
0:03:09.6]} 14. h3 {[%clk 0:04:31.9]} 14... Ngf6 {[%clk 0:02:43.3]} 15. Rae1
{[%clk 0:04:27.1]} 15... Qxa2 {[%clk 0:02:35.7]} 16. Ra1 {[%clk 0:04:25.6]}
16... Qb2 {[%clk 0:02:22]} 17. Rfb1 {[%clk 0:04:24.2]} 17... Qxb1+ {[%clk
0:02:00.5]} 18. Rxb1 {[%clk 0:04:22.6]} 18... Bc8 {[%clk 0:01:58.9]} 19. Bxf6
{[%clk 0:04:18.8]} 19... Nxf6 {[%clk 0:01:56.7]} 20. Ne5 {[%clk 0:04:18]} 20...
a6 {[%clk 0:01:53.1]} 21. Nxc6 {[%clk 0:04:16.3]} 21... Bb7 {[%clk 0:01:51.5]}
22. d5 {[%clk 0:04:15.2]} 22... exd5 {[%clk 0:01:50]} 23. exd5 {[%clk
0:04:14.4]} 23... Nxd5 {[%clk 0:01:48]} 24. Re1+ {[%clk 0:04:13.2]} 24... Kd7
{[%clk 0:01:44]} 25. Ne5+ {[%clk 0:04:11.9]} 25... Kc7 {[%clk 0:01:37.9]} 26.
Nxf7 {[%clk 0:04:10.5]} 26... Rhf8 {[%clk 0:01:30.5]} 27. Bg6 {[%clk 0:04:09.2]}
27... Nf4 {[%clk 0:01:25.9]} 28. Qd6+ {[%clk 0:04:07.4]} 1-0

[Event "Live Chess"]
[Site "Chess.com"]
[Date "2023.05.20"]
[Round "-"]
[White "boilerboy1"]
[Black "bedsdrout"]
[Result "1-0"]
[WhiteElo "1095"]
[BlackElo "100"]
[TimeControl "300"]
[EndTime "9:35:30 PDT"]
[Termination "boilerboy1 won by checkmate"]

1. e4 {[%clk 0:04:57]} 1... e5 {[%clk 0:04:54.5]} 2. Nc3 {[%clk 0:04:54.8]} 2...
Bc5 {[%clk 0:04:53.1]} 3. Nf3 {[%clk 0:04:51.7]} 3... Nc6 {[%clk 0:04:43.5]} 4.
Be2 {[%clk 0:04:49.5]} 4... Nd4 {[%clk 0:04:41.9]} 5. Nxd4 {[%clk 0:04:46.5]}
5... Qf6 {[%clk 0:04:40.1]} 6. Nf5 {[%clk 0:04:39.9]} 6... d6 {[%clk 0:04:31.5]}
7. O-O {[%clk 0:04:36.7]} 7... Qg5 {[%clk 0:04:17.8]} 8. Nd5 {[%clk 0:04:32.7]}
8... c6 {[%clk 0:04:12.8]} 9. Nc7+ {[%clk 0:04:30.6]} 9... Kd8 {[%clk
0:04:05.9]} 10. Nxa8 {[%clk 0:04:28.5]} 10... d5 {[%clk 0:03:59.3]} 11. d4
{[%clk 0:04:26.1]} 11... dxe4 {[%clk 0:03:56.8]} 12. Bxg5+ {[%clk 0:04:23.9]}
12... Kd7 {[%clk 0:03:48.5]} 13. dxc5+ {[%clk 0:04:22.6]} 13... Ke6 {[%clk
0:03:40.8]} 14. Nxg7# {[%clk 0:04:21.2]} 1-0

[Event "Live Chess"]
[Site "Chess.com"]
[Date "2023.05.20"]
[Round "-"]
[White "PureMellowPlan"]
[Black "AwesomeFredster"]
[Result "0-1"]
[WhiteElo "606"]
[BlackElo "1570"]
[TimeControl "300"]
[EndTime "9:35:34 PDT"]
[Termination "AwesomeFredster won by resignation"]

1. e4 {[%clk 0:04:58.8]} 1... e5 {[%clk 0:04:57.6]} 2. Nf3 {[%clk 0:04:57.4]}
2... Nc6 {[%clk 0:04:55.8]} 3. Nc3 {[%clk 0:04:55.9]} 3... Nf6 {[%clk
0:04:54.7]} 4. Bb5 {[%clk 0:04:54.3]} 4... d6 {[%clk 0:04:37]} 5. Bxc6+ {[%clk
0:04:53]} 5... bxc6 {[%clk 0:04:36.9]} 6. O-O {[%clk 0:04:51.7]} 6... d5 {[%clk
0:04:33.3]} 7. d3 {[%clk 0:04:43.1]} 7... Bc5 {[%clk 0:04:30]} 8. Re1 {[%clk
0:04:38.6]} 8... O-O {[%clk 0:04:27.3]} 9. Be3 {[%clk 0:04:36.6]} 9... Bb6
{[%clk 0:04:22]} 10. Bxb6 {[%clk 0:04:34.7]} 10... cxb6 {[%clk 0:04:21.1]} 11.
exd5 {[%clk 0:04:32.6]} 11... cxd5 {[%clk 0:04:19.8]} 12. Nxe5 {[%clk
0:04:31.3]} 12... Qd6 {[%clk 0:04:13.3]} 13. Nf3 {[%clk 0:04:28.6]} 13... Ng4
{[%clk 0:04:12]} 14. g3 {[%clk 0:04:22.4]} 14... Bb7 {[%clk 0:04:10.8]} 15. Qd2
{[%clk 0:04:19]} 15... d4 {[%clk 0:04:09.4]} 16. Qf4 {[%clk 0:04:15.9]} 16...
Qxf4 {[%clk 0:04:01.5]} 17. Ne2 {[%clk 0:04:07.5]} 0-1

[Event "Live Chess"]
[Site "Chess.com"]
[Date "2023.05.20"]
[Round "-"]
[White "MaximKris"]
[Black "AttackingSnowLeopard"]
[Result "0-1"]
[WhiteElo "1795"]
[BlackElo "2032"]
[TimeControl "300"]
[EndTime "9:35:35 PDT"]
[Termination "AttackingSnowLeopard won by checkmate"]

1. e4 {[%clk 0:04:58.7]} 1... e5 {[%clk 0:04:58.8]} 2. Nf3 {[%clk 0:04:57.4]}
2... Nc6 {[%clk 0:04:58.3]} 3. Bb5 {[%clk 0:04:55.9]} 3... Nf6 {[%clk
0:04:57.1]} 4. O-O {[%clk 0:04:53.9]} 4... Nxe4 {[%clk 0:04:55.1]} 5. Re1 {[%clk
0:04:53.2]} 5... Nd6 {[%clk 0:04:54]} 6. Bxc6 {[%clk 0:04:51.9]} 6... dxc6
{[%clk 0:04:52.1]} 7. Nxe5 {[%clk 0:04:51.3]} 7... Be7 {[%clk 0:04:51.8]} 8. Nc3
{[%clk 0:04:49.8]} 8... O-O {[%clk 0:04:51.1]} 9. d4 {[%clk 0:04:49.3]} 9... Nf5
{[%clk 0:04:47.9]} 10. Be3 {[%clk 0:04:46.7]} 10... Bf6 {[%clk 0:04:46.4]} 11.
Nf3 {[%clk 0:04:45]} 11... Be6 {[%clk 0:04:43.2]} 12. Qd3 {[%clk 0:04:43.6]}
12... Nd6 {[%clk 0:04:39.9]} 13. Rad1 {[%clk 0:04:30.1]} 13... Bf5 {[%clk
0:04:32.4]} 14. Qe2 {[%clk 0:04:26.5]} 14... Re8 {[%clk 0:04:30]} 15. Rd2 {[%clk
0:04:13]} 15... Ne4 {[%clk 0:03:57.9]} 16. Nxe4 {[%clk 0:04:10.2]} 16... Bxe4
{[%clk 0:03:57.8]} 17. Bf4 {[%clk 0:03:58.9]} 17... Bxf3 {[%clk 0:03:31.1]} 18.
Qxe8+ {[%clk 0:03:58]} 18... Qxe8 {[%clk 0:03:30.5]} 19. Rxe8+ {[%clk
0:03:57.9]} 19... Rxe8 {[%clk 0:03:29.5]} 20. gxf3 {[%clk 0:03:57.8]} 20... Re7
{[%clk 0:03:14.9]} 21. c3 {[%clk 0:03:51.1]} 21... g5 {[%clk 0:03:11]} 22. Bg3
{[%clk 0:03:48.7]} 22... h5 {[%clk 0:03:08.4]} 23. h3 {[%clk 0:03:42.3]} 23...
Kg7 {[%clk 0:03:07.3]} 24. f4 {[%clk 0:03:38.3]} 24... g4 {[%clk 0:02:58.8]} 25.
hxg4 {[%clk 0:03:37.3]} 25... hxg4 {[%clk 0:02:57.3]} 26. d5 {[%clk 0:03:34.9]}
26... Rd7 {[%clk 0:02:49.3]} 27. c4 {[%clk 0:03:28.5]} 27... cxd5 {[%clk
0:02:47.2]} 28. cxd5 {[%clk 0:03:27.6]} 28... Kg6 {[%clk 0:02:44.1]} 29. b3
{[%clk 0:03:21.6]} 29... Kf5 {[%clk 0:02:42.8]} 30. Rc2 {[%clk 0:03:17.8]} 30...
Ke4 {[%clk 0:02:29.7]} 31. d6 {[%clk 0:03:16.6]} 31... cxd6 {[%clk 0:02:23.2]}
32. Rc8 {[%clk 0:03:15.7]} 32... d5 {[%clk 0:02:18.2]} 33. Kf1 {[%clk
0:03:11.9]} 33... d4 {[%clk 0:02:16.9]} 34. Ke2 {[%clk 0:03:10.4]} 34... d3+
{[%clk 0:02:16.1]} 35. Kd2 {[%clk 0:03:09.9]} 35... Kf3 {[%clk 0:02:09.3]} 36.
Re8 {[%clk 0:03:05.8]} 36... Bc3+ {[%clk 0:02:00.4]} 37. Kd1 {[%clk 0:02:41.6]}
37... Bd4 {[%clk 0:01:50.2]} 38. Rg8 {[%clk 0:02:21.9]} 38... f5 {[%clk
0:01:45.7]} 39. Rg5 {[%clk 0:02:12]} 39... Bxf2 {[%clk 0:01:42.9]} 40. Bxf2
{[%clk 0:02:11.9]} 40... Kxf2 {[%clk 0:01:42.2]} 41. Rxf5 {[%clk 0:02:10.5]}
41... g3 {[%clk 0:01:41.9]} 42. Rg5 {[%clk 0:02:10]} 42... g2 {[%clk 0:01:41.6]}
43. f5 {[%clk 0:02:08]} 43... g1=Q+ {[%clk 0:01:40.7]} 44. Rxg1 {[%clk
0:02:07.9]} 44... Kxg1 {[%clk 0:01:40.2]} 45. Kd2 {[%clk 0:02:07.6]} 45... Kf2
{[%clk 0:01:38.5]} 46. f6 {[%clk 0:02:06.9]} 46... Kf3 {[%clk 0:01:37.6]} 47. f7
{[%clk 0:02:06.3]} 47... Rxf7 {[%clk 0:01:36.5]} 48. Kxd3 {[%clk 0:02:06.2]}
48... Rc7 {[%clk 0:01:35.6]} 49. a4 {[%clk 0:02:04.6]} 49... a5 {[%clk
0:01:33.4]} 50. Kd4 {[%clk 0:02:03.3]} 50... Ke2 {[%clk 0:01:32.5]} 51. Kd5
{[%clk 0:02:01.9]} 51... Kd2 {[%clk 0:01:32.1]} 52. Kd6 {[%clk 0:02:01.8]} 52...
Rc8 {[%clk 0:01:29.8]} 53. Kd7 {[%clk 0:02:01]} 53... Rc1 {[%clk 0:01:28.9]} 54.
Kd6 {[%clk 0:02:00.9]} 54... Rc3 {[%clk 0:01:27.1]} 55. Kd5 {[%clk 0:02:00.8]}
55... Kc2 {[%clk 0:01:26.4]} 56. Ke5 {[%clk 0:02:00.7]} 56... Kxb3 {[%clk
0:01:25.2]} 57. Ke6 {[%clk 0:02:00.6]} 57... Kxa4 {[%clk 0:01:24.6]} 58. Kd6
{[%clk 0:02:00.5]} 58... Kb3 {[%clk 0:01:23.7]} 59. Kd5 {[%clk 0:02:00.4]} 59...
a4 {[%clk 0:01:22.7]} 60. Ke5 {[%clk 0:02:00.3]} 60... a3 {[%clk 0:01:22.3]} 61.
Ke6 {[%clk 0:02:00.2]} 61... a2 {[%clk 0:01:21.9]} 62. Kd6 {[%clk 0:02:00.1]}
62... a1=Q {[%clk 0:01:21.2]} 63. Kd5 {[%clk 0:02:00]} 63... Qd1+ {[%clk
0:01:19.9]} 64. Ke5 {[%clk 0:01:59.9]} 64... Re3+ {[%clk 0:01:18.6]} 65. Kf5
{[%clk 0:01:59.3]} 65... Qf1+ {[%clk 0:01:16]} 66. Kg5 {[%clk 0:01:59.2]} 66...
Rg3+ {[%clk 0:01:14.8]} 67. Kh4 {[%clk 0:01:59.1]} 67... Qh3# {[%clk 0:01:14]}
0-1